fUSD/lending_fUSD_20251223
["ID","MTS","AMOUNT","RATE_DAILY","PERIOD"]
[399568971,1766502643510,-500.0,0.00016999,2]
[399568972,1766502643519,-500.0,0.00016999,2]
[399568973,1766502643528,-593.22569855,0.00016999,2]
[399568974,1766502643537,-300.0,0.00016999,2]
[399568975,1766502643546,-192.6209221,0.00016999,2]
[399568976,1766502643556,-608.48416301,0.00016999,2]
[399568977,1766502643565,-168.29249732,0.00016999,2]
[399568978,1766502643574,-172.11096324,0.00016999,2]
[399568979,1766502643583,-3523651.70464584,0.00017,2]
[399568980,1766502643692,-443.4506406,0.000169,2]
[399568981,1766502643711,-77.9260705,0.000169,2]
[399568982,1766502643720,-525.2881295,0.00017,2]
[399568983,1766502643732,-1262.94108638,0.00017,2]
[399568984,1766502643755,-3046.17745822,0.00017,2]
[399568985,1766502643765,-411.05018221,0.00017,2]
[399568986,1766502643783,-66582.42776793,0.00017,2]
[399568987,1766502643791,-231231.24207493,0.00017,2]
[399568988,1766502646186,-4404.10953762,0.00017,2]
[399568989,1766502646198,-373.49586585,0.00017,2]
[399568990,1766502646210,-416.30793719,0.00017,2]
[399568991,1766502646221,-1371.0348299,0.00017,2]
[399568992,1766502646233,-29100.0,0.00017,2]
[399568993,1766502646244,-4169.902902,0.00017,2]
[399568994,1766502646255,-297.68314574,0.00017,2]
[399568995,1766502646267,-343.53915486,0.00017,2]
[399568996,1766502646278,-2848.04046362,0.00017,2]
[399568997,1766502646572,-5811.79999999,0.00017,2]
[399568998,1766502646585,-2610.0,0.00017,2]
[399569007,1766502647158,-585337.58417777,0.00017,2]
[399569008,1766502647174,-1150773.80933197,0.00017,2]
[399569009,1766502647190,-240046.42664876,0.00017,2]
[399569010,1766502972926,279.07,0.000226,120]
[399569013,1766503046817,532.44368461,0.000176,30]
[399569037,1766503832418,-522.3,0.00013699,2]
[399569038,1766503832435,-48.99,0.00013699,2]
[399569039,1766503832444,-252.52624561,0.00013769,2]
[399569040,1766503832454,-200.05,0.00014241,2]
[399569041,1766503832464,-168.99,0.00014258,2]
[399569042,1766503832474,-173.79223704,0.00014285,2]
[399569043,1766503832484,-300.0,0.00014285,2]
[399569044,1766503832493,-291.41210943,0.00014285,2]
[399569045,1766503832506,-908.58789057,0.00014285,2]
[399569046,1766503832515,-300.0,0.00014285,2]
[399569047,1766503832526,-150.0,0.00014285,2]
[399569048,1766503832535,-15544.7982896,0.00014286,2]
[399569049,1766503832548,-7631.69981,0.00014286,2]
[399569050,1766503832559,-834.46466102,0.00014286,2]
[399569051,1766503832571,-1994.98025486,0.00014286,2]
[399569052,1766503832583,-471.84604647,0.00014286,2]
[399569053,1766503832595,-1100.0,0.00014286,2]
[399569054,1766503832608,-413.55879027,0.00014286,2]
[399569055,1766503832624,-871.98025582,0.00014286,2]
[399569056,1766503832638,-824.45059083,0.00014286,2]
[399569057,1766503832650,-4498.31984365,0.00014286,2]
[399569059,1766503832662,-2949.99999998,0.00014286,2]
[399569061,1766503832674,-4544.70443836,0.00014286,2]
[399569062,1766503832687,-368.48262326,0.00014286,2]
[399569063,1766503832699,-134965.3989435,0.00014286,2]
[399569064,1766503832712,-141969.92226188,0.00014286,2]
[399569065,1766503832723,-524.45373049,0.00014286,2]
[399569066,1766503832735,-948.3053255,0.00014286,2]
[399569067,1766503832759,-3444.2674592,0.00014286,2]
[399569068,1766503832808,-2424.42970357,0.00014286,2]
[399569073,1766503838388,-251.80538329,0.00014285,2]
[399569074,1766503838401,-248.19461671,0.00014285,2]
[399569075,1766503838412,-500.0,0.00014285,2]
[399569076,1766503838422,-500.0,0.00014285,2]
[399569077,1766503838433,-500.0,0.00014285,2]
[399569078,1766503838444,-500.0,0.00014285,2]
[399569079,1766503838454,-500.0,0.00014285,2]
[399569080,1766503838465,-673673.93697174,0.00014286,2]
[399569081,1766503838476,-5515.56620634,0.00014386,2]
[399569082,1766503838486,-24209.9019,0.00014386,2]
[399569083,1766503838499,-1264.1867,0.00014386,2]
[399569084,1766503838509,-150.0,0.00014484,2]
[399569085,1766503838519,-500.0,0.00014485,2]
[399569086,1766503838529,-370.97583972,0.00014485,2]
[399569087,1766503838540,-500.0,0.00014485,2]
[399569088,1766503838551,-525.99859536,0.00014485,2]
[399569089,1766503838565,-500.0,0.00014485,2]
[399569090,1766503838578,-500.0,0.00014485,2]
[399569091,1766503838589,-500.0,0.00014485,2]
[399569092,1766503838601,-500.0,0.00014485,2]
[399569093,1766503838613,-500.0,0.00014485,2]
[399569094,1766503838624,-500.0,0.00014485,2]
[399569095,1766503838637,-500.0,0.00014485,2]
[399569096,1766503838649,-500.0,0.00014485,2]
[399569097,1766503838660,-500.0,0.00014485,2]
[399569098,1766503838671,-500.0,0.00014485,2]
[399569099,1766503838681,-500.0,0.00014485,2]
[399569100,1766503838691,-500.0,0.00014485,2]
[399569101,1766503838702,-500.0,0.00014485,2]
[399569102,1766503838714,-500.0,0.00014485,2]
[399569103,1766503838724,-500.0,0.00014485,2]
[399569104,1766503838734,-604.31886581,0.00014485,2]
[399569106,1766503838745,-482.26053294,0.00014485,2]
[399569108,1766503838755,-751.27,0.00014485,2]
[399569110,1766503838765,-500.0,0.00014485,2]
[399569112,1766503838776,-500.0,0.00014485,2]
[399569114,1766503838785,-500.0,0.00014485,2]
[399569117,1766503838796,-500.0,0.00014485,2]
[399569119,1766503838807,-687.539,0.00014485,2]
[399569121,1766503838817,-158.435,0.00014485,2]
[399569123,1766503838827,-508.77600646,0.00014485,2]
[399569125,1766503838837,-531.46,0.00014485,2]
[399569127,1766503838846,-531.46,0.00014485,2]
[399569128,1766503838856,-531.46,0.00014485,2]
[399569130,1766503838866,-531.46,0.00014485,2]
[399569132,1766503838876,-500.0,0.00014485,2]
[399569134,1766503838885,-500.0,0.00014485,2]
[399569136,1766503838895,-500.0,0.00014485,2]
[399569138,1766503838906,-531.25264543,0.00014485,2]
[399569140,1766503838916,-500.0,0.00014485,2]
[399569142,1766503838926,-500.0,0.00014485,2]
[399569144,1766503838936,-500.0,0.00014485,2]
[399569146,1766503838946,-500.0,0.00014485,2]
[399569148,1766503838955,-743.85494776,0.00014486,2]
[399569149,1766503838965,-3855.20527888,0.00014486,2]
[399569151,1766503838975,-416.83928079,0.00014486,2]
[399569153,1766503838985,-2721.94589093,0.00014486,2]
[399569155,1766503838995,-600.0,0.00014486,2]
[399569157,1766503839005,-23014.01144601,0.00014586,2]
[399569160,1766503839018,-7415.54935399,0.00014586,2]
[399569162,1766503839028,-1000.0,0.00014586,2]
[399569163,1766503839038,-500.0,0.00014685,2]
[399569165,1766503839048,-500.0,0.00014685,2]
[399569167,1766503839061,-500.0,0.00014685,2]
[399569169,1766503839072,-500.0,0.00014685,2]
[399569171,1766503839083,-500.0,0.00014685,2]
[399569173,1766503839093,-500.0,0.00014685,2]
[399569175,1766503839104,-500.0,0.00014685,2]
[399569177,1766503839115,-500.0,0.00014685,2]
[399569179,1766503839125,-1425.37,0.00014685,2]
[399569181,1766503839135,-1425.37,0.00014685,2]
[399569183,1766503839146,-1425.37,0.00014685,2]
[399569185,1766503839156,-1425.37,0.00014685,2]
[399569187,1766503839166,-3855.20527881,0.00014754,2]
[399569189,1766503839178,-2721.9458909,0.00014754,2]
[399569191,1766503839188,-751.27,0.00014759,2]
[399569193,1766503839198,-600.0,0.0001476,2]
[399569195,1766503839208,-416.83928074,0.00014831,2]
[399569197,1766503839218,-3855.20527881,0.00015022,2]
[399569199,1766503839228,-2721.9458909,0.00015022,2]
[399569201,1766503839238,-751.27,0.00015033,2]
[399569203,1766503839249,-600.0,0.00015034,2]
[399569205,1766503839258,-300.0,0.00015068,2]
[399569207,1766503839268,-250.0,0.00015068,2]
[399569208,1766503839278,-173.79223703,0.00015093,2]
[399569209,1766503839288,-416.83928074,0.00015176,2]
[399569210,1766503839298,-4825.48,0.00015264,2]
[399569211,1766503839309,-174.96680864,0.00015288,2]
[399569212,1766503839320,-150.0,0.00015288,2]
[399569213,1766503839330,-150.0,0.00015288,2]
[399569214,1766503839340,-150.0,0.00015288,2]
[399569215,1766503839350,-150.0,0.00015288,2]
[399569216,1766503839360,-150.0,0.00015288,2]
[399569217,1766503839638,-150.0,0.00015288,2]
[399569218,1766503839667,-150.00000001,0.00015288,2]
[399569219,1766503839679,-150.0,0.00015288,2]
[399569220,1766503839689,-150.0,0.00015288,2]
[399569221,1766503839698,-150.0,0.00015288,2]
[399569222,1766503839709,-3855.20527881,0.00015291,2]
[399569223,1766503839719,-2721.9458909,0.00015291,2]
[399569224,1766503839729,-751.27,0.00015307,2]
[399569225,1766503839738,-600.0,0.00015308,2]
[399569226,1766503839748,-151.0,0.00015342,2]
[399569227,1766503839758,-151.0,0.00015346,2]
[399569228,1766503839768,-151.0,0.00015354,2]
[399569229,1766503839780,-151.0,0.00015354,2]
[399569230,1766503839789,-255.0,0.00015414,2]
[399569231,1766503839799,-416.83928074,0.00015521,2]
[399569232,1766503839810,-3149.0,0.00015526,2]
[399569233,1766503839820,-3855.20527881,0.00015559,2]
[399569234,1766503839829,-2721.9458909,0.00015559,2]
[399569235,1766503839839,-751.27,0.00015581,2]
[399569236,1766503839848,-600.0,0.00015582,2]
[399569237,1766503839858,-500.0,0.00015595,2]
[399569238,1766503839867,-500.0,0.00015595,2]
[399569239,1766503839877,-578.20924308,0.00015595,2]
[399569240,1766503839887,-500.0,0.00015595,2]
[399569241,1766503839897,-500.0,0.00015595,2]
[399569242,1766503839906,-500.0,0.00015595,2]
[399569243,1766503839915,-500.0,0.00015595,2]
[399569244,1766503839924,-200.0,0.00015595,2]
[399569245,1766503839934,-500.0,0.00015595,2]
[399569246,1766503839943,-500.0,0.00015595,2]
[399569247,1766503839953,-207.4,0.00015595,2]
[399569248,1766503839962,-500.0,0.00015595,2]
[399569249,1766503839972,-500.0,0.00015595,2]
[399569250,1766503839981,-215.0738,0.00015595,2]
[399569251,1766503839991,-500.0,0.00015595,2]
[399569252,1766503840001,-500.0,0.00015595,2]
[399569253,1766503840010,-223.0315306,0.00015595,2]
[399569254,1766503840020,-500.0,0.00015595,2]
[399569255,1766503840029,-500.0,0.00015595,2]
[399569256,1766503840039,-1108.0,0.00015595,2]
[399569257,1766503840049,-500.0,0.00015595,2]
[399569258,1766503840059,-231.28369723,0.00015595,2]
[399569259,1766503840068,-352.62790917,0.00015595,2]
[399569260,1766503840078,-239.84119403,0.00015595,2]
[399569261,1766503840087,-208.68965938,0.00015595,2]
[399569262,1766503840097,-574.12855637,0.00015595,2]
[399569263,1766503840107,-718.62777009,0.00015595,2]
[399569264,1766503840118,-151.0,0.00015595,2]
[399569265,1766503840128,-322.6107,0.00015595,2]
[399569266,1766503840137,-420.0,0.00015646,2]
[399569267,1766503840147,-420.0,0.00015646,2]
[399569268,1766503840157,-468.0,0.00015673,2]
[399569269,1766503840167,-1263.0,0.00015673,2]
[399569270,1766503840177,-1198.0,0.00015673,2]
[399569271,1766503840187,-4806.0,0.00015673,2]
[399569272,1766503840196,-3457.0,0.00015673,2]
[399569273,1766503840205,-2430.0,0.00015673,2]
[399569275,1766503840215,-1680.0,0.00015714,2]
[399569276,1766503840224,-500.0,0.00015783,2]
[399569277,1766503840234,-500.0,0.00015783,2]
[399569278,1766503840244,-500.0,0.00015783,2]
[399569279,1766503840253,-500.0,0.00015783,2]
[399569280,1766503840263,-500.0,0.00015783,2]
[399569281,1766503840272,-500.0,0.00015783,2]
[399569282,1766503840282,-333.88776573,0.00015783,2]
[399569283,1766503840291,-500.0,0.00015783,2]
[399569284,1766503840301,-500.0,0.00015783,2]
[399569285,1766503840311,-502.34827947,0.00015783,2]
[399569286,1766503840322,-494.0,0.000158,5]
[399569287,1766503840331,-3855.20527881,0.00015827,2]
[399569290,1766503840341,-2721.9458909,0.00015827,2]
[399569291,1766503840350,-751.27,0.00015855,2]
[399569292,1766503840359,-600.0,0.00015856,2]
[399569293,1766503840368,-416.83928074,0.00015865,2]
[399569294,1766503840378,-173.79223703,0.000159,2]
[399569296,1766503840387,-1356.48650024,0.0001599,2]
[399569297,1766503840397,-795.64634446,0.00016,7]
[399569298,1766503840406,-102264.58079738,0.00016,4]
[399569299,1766503840427,-2730.54381795,0.00016,4]
[399569300,1766503840439,-1157.83394336,0.00016,4]
[399569301,1766503840450,-4592.99641254,0.00016,4]
[399569302,1766503840461,-612.70272453,0.00016,4]
[399569303,1766503840472,-2826.86809465,0.00016,4]
[399569304,1766503840484,-797.15215664,0.00016,4]
[399569305,1766503840495,-431.69598331,0.00016,4]
[399569306,1766503840509,-499.21428765,0.00016,4]
[399569307,1766503840520,-871.59133588,0.00016,4]
[399569308,1766503840719,-8117.35424924,0.00016,4]
[399569309,1766503840732,-1465.92267516,0.00016,4]
[399569310,1766503840749,-7797.00312763,0.00016,4]
[399569311,1766503840761,-405.0,0.00016,4]
[399569312,1766503840787,-375176.22714525,0.00016,4]
[399569313,1766503840796,-3855.20527881,0.00016095,2]
[399569314,1766503840806,-2721.9458909,0.00016095,2]
[399569315,1766503840816,-150.99,0.00016116,2]
[399569317,1766503840825,-3806.81,0.00016116,2]
[399569318,1766503840834,-9999.99,0.00016116,2]
[399569320,1766503840844,-1170.72,0.00016116,2]
[399569322,1766503840853,-9500.75,0.00016116,2]
[399569324,1766503840863,-150.99,0.00016116,2]
[399569326,1766503840873,-12451.27,0.00016116,2]
[399569328,1766503840884,-9999.99,0.00016116,2]
[399569330,1766503840893,-751.27,0.00016129,2]
[399569331,1766503840903,-600.0,0.0001613,2]
[399569332,1766503840913,-595.37131296,0.00016143,2]
[399569333,1766503840923,-200.0,0.0001617,2]
[399569334,1766503840934,-1883.59031248,0.000162,5]
[399569335,1766503840960,-3116.41856404,0.000162,5]
[399569336,1766503840970,-416.83928074,0.0001621,2]
[399569337,1766503840980,-201.98303125,0.00016331,2]
[399569338,1766503840990,-500.77132056,0.00016331,2]
[399569339,1766503841000,-628.25452076,0.00016331,2]
[399569340,1766503841010,-1000.0,0.00016331,2]
[399569341,1766503841019,-1000.0,0.00016331,2]
[399569342,1766503841030,-1000.0,0.00016331,2]
[399569343,1766503841040,-200.0,0.0001634,2]
[399569344,1766503841051,-3855.20527881,0.00016364,2]
[399569345,1766503841067,-2721.9458909,0.00016364,2]
[399569346,1766503841077,-751.29012305,0.00016403,2]
[399569347,1766503841087,-600.0,0.00016404,2]
[399569348,1766503841099,-1090.24693266,0.00016437,5]
[399569349,1766503841109,-1425.37,0.00016437,2]
[399569350,1766503841119,-500.0,0.00016438,2]
[399569351,1766503841129,-500.0,0.00016438,2]
[399569352,1766503841139,-500.0,0.00016438,2]
[399569353,1766503841149,-500.0,0.00016438,2]
[399569354,1766503841159,-500.0,0.00016438,2]
[399569355,1766503841168,-500.0,0.00016438,2]
[399569356,1766503841178,-500.0,0.00016438,2]
[399569357,1766503841188,-500.0,0.00016438,2]
[399569358,1766503841198,-500.0,0.00016438,2]
[399569359,1766503841207,-500.0,0.00016438,2]
[399569360,1766503841218,-500.0,0.00016438,2]
[399569361,1766503841229,-500.0,0.00016438,2]
[399569362,1766503841239,-500.0,0.00016438,2]
[399569363,1766503841250,-350.0,0.00016438,2]
[399569364,1766503841262,-500.0,0.00016438,2]
[399569365,1766503841272,-500.0,0.00016438,2]
[399569366,1766503841283,-500.0,0.00016438,2]
[399569367,1766503841293,-235.76832595,0.00016438,2]
[399569368,1766503841303,-301.19,0.00016438,2]
[399569369,1766503841313,-150.0,0.00016438,2]
[399569370,1766503841323,-150.0,0.00016438,2]
[399569371,1766503841334,-219.1,0.00016438,2]
[399569372,1766503841344,-1219.85,0.00016438,2]
[399569373,1766503841355,-1219.85,0.00016438,2]
[399569374,1766503841365,-1219.85,0.00016438,2]
[399569375,1766503841375,-1219.85,0.00016438,2]
[399569376,1766503841385,-1219.85,0.00016438,2]
[399569377,1766503841395,-2439.7,0.00016438,2]
[399569378,1766503841405,-1219.85,0.00016438,2]
[399569379,1766503841416,-445.0,0.00016438,2]
[399569380,1766503841426,-464.86,0.00016438,2]
[399569381,1766503841436,-170.73,0.00016438,2]
[399569382,1766503841446,-464.86,0.00016438,2]
[399569383,1766503841456,-464.86,0.00016438,2]
[399569384,1766503841465,-416.83928074,0.00016555,2]
[399569385,1766503841475,-5489.0,0.00016567,2]
[399569386,1766503841485,-433.0,0.00016628,2]
[399569387,1766503841495,-3855.20527881,0.00016632,2]
[399569388,1766503841505,-2721.9458909,0.00016632,2]
[399569389,1766503841515,-5198.79455168,0.0001666,2]
[399569390,1766503841525,-600.0,0.00016678,2]
[399569391,1766503841536,-617.40005154,0.00016691,2]
[399569392,1766503841545,-213.0,0.00016693,2]
[399569393,1766503841555,-2757.70067082,0.000167,2]
[399569394,1766503841566,-2506.9582002,0.00016712,2]
[399569395,1766503841575,-1000.0,0.000168,2]
[399569396,1766503841585,-200.0,0.00016863,2]
[399569397,1766503841595,-200.0,0.00016864,2]
[399569398,1766503841604,-2000.0,0.00016864,2]
[399569399,1766503841614,-500.0,0.00016864,2]
[399569400,1766503841623,-200.0,0.00016864,2]
[399569401,1766503841635,-200.0,0.00016864,2]
[399569402,1766503841648,-196.22588074,0.00016878,2]
[399569403,1766503841658,-1500.0,0.00016878,2]
[399569404,1766503841668,-1500.0,0.00016878,2]
[399569405,1766503841678,-10000.0,0.000169,2]
[399569406,1766503841688,-998.56379194,0.000169,2]
[399569407,1766503841698,-2652.1985947,0.000169,2]
[399569408,1766503841708,-3855.20527881,0.000169,2]
[399569409,1766503841720,-416.83928074,0.000169,2]
[399569410,1766503841730,-2721.9458909,0.000169,2]
[399569411,1766503841740,-19517.86976876,0.000169,2]
[399569412,1766503841750,-1300.44064978,0.000169,2]
[399569413,1766503841760,-511.81513334,0.000169,2]
[399569414,1766503841770,-2803.4098618,0.000169,2]
[399569415,1766503841780,-500.0,0.00016921,2]
[399569416,1766503841790,-500.0,0.00016921,2]
[399569417,1766503841800,-531.46,0.00016921,2]
[399569418,1766503841809,-500.0,0.00016921,2]
[399569419,1766503841819,-600.0,0.00016952,2]
[399569420,1766503841829,-797.20615221,0.00016952,2]
[399569421,1766503841839,-1108.0,0.00016964,2]
[399569422,1766503841849,-157.8410325,0.00016964,2]
[399569423,1766503841859,-334.5472959,0.00016964,2]
[399569424,1766503841868,-250.0,0.00016966,2]
[399569425,1766503841878,-894.91811465,0.00016967,2]
[399569426,1766503842108,-3899.0,0.00016986,2]
[399569427,1766503842118,-1356.48650024,0.0001699,2]
[399569428,1766503842128,-1356.48650024,0.0001699,2]
[399569429,1766503842138,-1090.24693266,0.00016999,5]
[399569430,1766503842148,-1090.24693266,0.00016999,5]
[399569431,1766503842158,-1090.24693267,0.00016999,5]
[399569432,1766503842168,-1090.24693266,0.00016999,5]
[399569433,1766503842178,-1090.24693266,0.00016999,5]
[399569434,1766503842189,-1090.24693266,0.00016999,5]
[399569435,1766503842199,-1090.24693266,0.00016999,5]
[399569436,1766503842208,-300.0,0.00016999,2]
[399569437,1766503842219,-500.0,0.00016999,2]
[399569438,1766503842228,-500.0,0.00016999,2]
[399569439,1766503842239,-500.0,0.00016999,2]
[399569440,1766503842248,-183.93452706,0.00016999,2]
[399569441,1766503842258,-1425.37,0.00016999,2]
[399569442,1766503842268,-1425.37,0.00016999,2]
[399569443,1766503842277,-1425.37,0.00016999,2]
[399569444,1766503842287,-1425.37,0.00016999,2]
[399569445,1766503842297,-1425.37,0.00016999,2]
[399569446,1766503842307,-1425.37,0.00016999,2]
[399569447,1766503842317,-1425.37,0.00016999,2]
[399569448,1766503842326,-1425.37,0.00016999,2]
[399569449,1766503842336,-1425.37,0.00016999,2]
[399569450,1766503842345,-1425.37,0.00016999,2]
[399569451,1766503842355,-1425.37,0.00016999,2]
[399569452,1766503842364,-1425.37,0.00016999,2]
[399569453,1766503842374,-1425.37,0.00016999,2]
[399569454,1766503842383,-1425.37,0.00016999,2]
[399569455,1766503842393,-1425.37,0.00016999,2]
[399569456,1766503842403,-1425.37,0.00016999,2]
[399569457,1766503842412,-1425.37,0.00016999,2]
[399569458,1766503842422,-1425.37,0.00016999,2]
[399569459,1766503842434,-1425.39562456,0.00016999,2]
[399569460,1766503842443,-247.7695039,0.00016999,2]
[399569461,1766503842453,-531.46,0.00016999,2]
[399569462,1766503842462,-531.46,0.00016999,2]
[399569463,1766503842472,-531.46,0.00016999,2]
[399569464,1766503842482,-531.46,0.00016999,2]
[399569465,1766503842491,-531.46,0.00016999,2]
[399569466,1766503842501,-531.46,0.00016999,2]
[399569467,1766503842511,-531.46,0.00016999,2]
[399569468,1766503842521,-531.46,0.00016999,2]
[399569469,1766503842530,-531.46,0.00016999,2]
[399569470,1766503842541,-531.46,0.00016999,2]
[399569471,1766503842551,-531.46,0.00016999,2]
[399569472,1766503842561,-531.46,0.00016999,2]
[399569473,1766503842571,-531.46,0.00016999,2]
[399569474,1766503842581,-531.46,0.00016999,2]
[399569475,1766503842590,-531.46,0.00016999,2]
[399569476,1766503842600,-531.46,0.00016999,2]
[399569477,1766503842610,-531.46,0.00016999,2]
[399569478,1766503842619,-531.46,0.00016999,2]
[399569479,1766503842630,-531.65800734,0.00016999,2]
[399569480,1766503842641,-500.0,0.00016999,2]
[399569481,1766503842651,-500.0,0.00016999,2]
[399569482,1766503842661,-500.0,0.00016999,2]
[399569483,1766503842671,-500.0,0.00016999,2]
[399569484,1766503842683,-300.0,0.00016999,2]
[399569485,1766503842693,-300.0,0.00016999,2]
[399569486,1766503842703,-300.0,0.00016999,2]
[399569487,1766503842712,-500.0,0.00016999,2]
[399569488,1766503842723,-500.0,0.00016999,2]
[399569489,1766503842733,-500.0,0.00016999,2]
[399569490,1766503842743,-500.0,0.00016999,2]
[399569491,1766503842752,-593.22569855,0.00016999,2]
[399569492,1766503842762,-500.0,0.00016999,2]
[399569493,1766503842771,-192.6209221,0.00016999,2]
[399569494,1766503842781,-168.29249732,0.00016999,2]
[399569495,1766503842790,-280.59512625,0.00016999,2]
[399569496,1766503842800,-687107.18095046,0.00017,2]
[399569497,1766503842811,-3230045.55658259,0.00017,2]
[399569498,1766503842840,-435.22091504,0.00017,2]
[399569499,1766503842851,-376.664999,0.00017,2]
[399569500,1766503842863,-340.99354998,0.00017,2]
[399569510,1766503843747,-230.22359054,0.00014285,2]
[399569511,1766503843767,-110.75816546,0.00014285,2]
[399569512,1766503843836,-389.24183454,0.00014285,2]
[399569513,1766503843856,-500.0,0.00014285,2]
[399569514,1766503843874,-70.95136672,0.00014285,2]
[399569515,1766503843908,-429.04863328,0.00014285,2]
[399569516,1766503843928,-500.0,0.00014285,2]
[399569517,1766503843945,-500.0,0.00014285,2]
[399569518,1766503843964,-500.0,0.00014285,2]
[399569519,1766503843983,-500.0,0.00014285,2]
[399569520,1766503844002,-500.0,0.00014285,2]
[399569521,1766503844019,-427.06531796,0.00014285,2]
[399569523,1766503844038,-841.07509167,0.00015673,2]
[399569526,1766503846395,-500.0,0.00014285,2]
[399569527,1766503846405,-484.92490833,0.00015673,2]
[399569528,1766503846415,-356645.07577518,0.00017,2]
[399569529,1766503846426,-286.60526096,0.00017,2]
[399569530,1766503846442,-3702.90600345,0.00017,2]
[399569531,1766503846661,-500.0,0.00017,2]
[399569533,1766503846674,-30071.75084598,0.00017,2]
[399569753,1766504107392,2074.15637208,0.000226,120]
[399569758,1766504278441,161.74,6.833e-05,2]
[399569759,1766504278872,161.74,7.687e-05,2]
[399569760,1766504279074,161.74,8.541e-05,2]
[399569761,1766504280178,161.74,9.395e-05,2]
[399569782,1766504523207,999.0,0.00012957,3]
[399569799,1766504814137,-161.74,0.00010249,2]
[399569800,1766504814161,-234.0,0.00010249,2]
[399569801,1766504814183,-174.93,0.00011094,2]
[399569802,1766504814207,-161.74,0.00011103,2]
[399569803,1766504814230,-316.9951901,0.00011174,2]
[399569804,1766504814269,-1200.0,0.00011273,2]
[399569805,1766504814293,-300.0,0.00011273,2]
[399569806,1766504814317,-300.0,0.00011273,2]
[399569807,1766504814339,-300.0,0.00011274,2]
[399569808,1766504814361,-195.0,0.00011274,2]
[399569809,1766504814385,-300.0,0.00011274,2]
[399569810,1766504814408,-195.0,0.00011274,2]
[399569811,1766504814430,-250.0,0.00011274,2]
[399569812,1766504814453,-300.0,0.00011274,2]
[399569813,1766504814476,-195.0,0.00011274,2]
[399569814,1766504814498,-300.0,0.00011274,2]
[399569815,1766504814521,-195.0,0.00011274,2]
[399569816,1766504814543,-161.74,0.00011957,2]
[399569817,1766504814565,-174.2411715,0.00012384,2]
[399569826,1766504961789,666.46131507,0.00014,3]
[399569831,1766505000134,150.1,5.48e-06,120]
[399569849,1766505032428,-251.0,0.00012384,2]
[399569850,1766505032450,-161.74,0.00012811,2]
[399569851,1766505032474,-151.41,0.00012898,2]
[399569852,1766505032489,-250.32785732,0.00012898,2]
[399569853,1766505032572,-1249.67214268,0.00012898,2]
[399569854,1766505032592,-28.13804527,0.00012982,2]
[399569855,1766505032733,-121.86195473,0.00012982,2]
[399569856,1766505032746,-175.2,0.00013209,2]
[399569857,1766505032760,-60.93804527,0.000134,2]
[399569858,1766505032781,-365.75768454,0.000134,2]
[399569859,1766505032871,-2331.00494101,0.000134,2]
[399569860,1766505032886,-718.72,0.00013437,2]
[399569861,1766505032898,-707.82081247,0.00013571,2]
[399569862,1766505032912,-492.17918753,0.00013571,2]
[399569863,1766505032925,-364.45972383,0.00013572,2]
[399569864,1766505032962,-1916.49391517,0.00013572,2]
[399569865,1766505032975,-300.0,0.00013622,2]
[399569866,1766505032990,-195.0,0.00013622,2]
[399569867,1766505033002,-161.74,0.00013665,2]
[399569868,1766505033013,-3806.49769351,0.00013958,2]
[399569869,1766505033028,-2261.59230649,0.00013958,2]
[399569870,1766505033043,-250.42,0.00014085,2]
[399569871,1766505033055,-500.0,0.00014085,2]
[399569872,1766505033067,-500.0,0.00014085,2]